[Event "Titled Tuesday Blitz April 25 Early 2023"]
[White "Kuzubov, Yuriy"]
[Black "Borgaonkar Akshay"]
[WhiteFideId "14112906"]
[BlackFideId "25639110"]
[WhiteElo "2496"]
[BlackElo "2063"]
[Result "1/2-1/2"]
[Round "11"]
[TimeControl "180+2"]
[Date "2023.04.25"]
[WhiteClock "0:00:05"]
[BlackClock "0:00:06"]

1. d4 {[%clk 0:02:56]}  Nf6 {[%clk 0:02:59]} 2. c4 {[%clk 0:02:57]}  g6 {[%clk 0:03:00]} 3. Nc3 {[%clk 0:02:56]}  Bg7 {[%clk 0:03:00]} 4. e4 {[%clk 0:02:56]}  d6 {[%clk 0:03:01]} 5. Bd3 {[%clk 0:02:56]}  O-O {[%clk 0:03:00]} 6. Nge2 {[%clk 0:02:56]}  c5 {[%clk 0:02:58]} 7. f3 {[%clk 0:02:55]}  cxd4 {[%clk 0:02:50]} 8. Nxd4 {[%clk 0:02:55]}  Nc6 {[%clk 0:02:51]} 9. Nc2 {[%clk 0:02:54]}  Ne5 {[%clk 0:02:44]} 10. Be2 {[%clk 0:02:52]}  a6 {[%clk 0:02:40]} 11. O-O {[%clk 0:02:51]}  Be6 {[%clk 0:02:38]} 12. Nd5 {[%clk 0:02:44]}  Bxd5 {[%clk 0:02:23]} 13. cxd5 {[%clk 0:02:45]}  Rc8 {[%clk 0:02:20]} 14. Be3 {[%clk 0:02:34]}  Nc4 {[%clk 0:02:18]} 15. Bxc4 {[%clk 0:02:35]}  Rxc4 {[%clk 0:02:19]} 16. b3 {[%clk 0:02:35]}  Rc8 {[%clk 0:02:11]} 17. Qd2 {[%clk 0:02:32]}  Nd7 {[%clk 0:02:09]} 18. Rac1 {[%clk 0:02:29]}  b5 {[%clk 0:01:56]} 19. Nd4 {[%clk 0:02:25]}  Ne5 {[%clk 0:01:51]} 20. h3 {[%clk 0:02:23]}  Rxc1 {[%clk 0:01:12]} 21. Rxc1 {[%clk 0:02:24]}  Qa8 {[%clk 0:01:11]} 22. f4 {[%clk 0:02:12]}  Nd7 {[%clk 0:01:11]} 23. Nc6 {[%clk 0:02:13]}  Re8 {[%clk 0:01:10]} 24. Bd4 {[%clk 0:01:55]}  e5 {[%clk 0:01:06]} 25. Bb2 {[%clk 0:01:33]}  Bh6 {[%clk 0:00:59]} 26. Qb4 {[%clk 0:01:18]}  Bxf4 {[%clk 0:00:57]} 27. Qxd6 {[%clk 0:01:17]}  Bxc1 {[%clk 0:00:57]} 28. Bxc1 {[%clk 0:01:18]}  Nf8 {[%clk 0:00:53]} 29. Bh6 {[%clk 0:01:10]}  f5 {[%clk 0:00:38]} 30. Qf6 {[%clk 0:00:24]}  Qb7 {[%clk 0:00:36]} 31. d6 {[%clk 0:00:25]}  Qf7 {[%clk 0:00:04]} 32. Ne7+ {[%clk 0:00:20]}  Rxe7 {[%clk 0:00:05]} 33. dxe7 {[%clk 0:00:12]}  Qxf6 {[%clk 0:00:04]} 34. e8=Q {[%clk 0:00:13]}  fxe4 {[%clk 0:00:03]} 35. h4 {[%clk 0:00:11]}  Qf5 {[%clk 0:00:01]} 36. Kh2 {[%clk 0:00:09]}  Qf7 {[%clk 0:00:02]} 37. Qxe5 {[%clk 0:00:08]}  Ne6 {[%clk 0:00:02]} 38. Qxe4 {[%clk 0:00:07]}  Qc7+ {[%clk 0:00:02]} 39. g3 {[%clk 0:00:07]}  Qf7 {[%clk 0:00:01]} 40. Qa8+ {[%clk 0:00:06]}  Nf8 {[%clk 0:00:02]} 41. Kg2 {[%clk 0:00:06]}  Qe7 {[%clk 0:00:01]} 42. Bxf8 {[%clk 0:00:05]}  Qe2+ {[%clk 0:00:01]} 43. Kh3 {[%clk 0:00:05]}  Qf1+ {[%clk 0:00:02]} 44. Kh2 {[%clk 0:00:04]}  Qf2+ {[%clk 0:00:02]} 45. Qg2 {[%clk 0:00:05]}  Qxg2+ {[%clk 0:00:02]} 46. Kxg2 {[%clk 0:00:06]}  Kxf8 {[%clk 0:00:03]} 47. Kf3 {[%clk 0:00:06]}  Ke7 {[%clk 0:00:03]} 48. Ke4 {[%clk 0:00:06]}  Ke6 {[%clk 0:00:04]} 49. b4 {[%clk 0:00:06]}  h5 {[%clk 0:00:03]} 50. Kd4 {[%clk 0:00:04]}  Kf6 {[%clk 0:00:04]} 51. Kc5 {[%clk 0:00:02]}  Kf5 {[%clk 0:00:04]} 52. Kb6 {[%clk 0:00:03]}  Kg4 {[%clk 0:00:05]} 53. Kxa6 {[%clk 0:00:03]}  Kxg3 {[%clk 0:00:06]} 54. Kxb5 {[%clk 0:00:04]}  Kxh4 {[%clk 0:00:07]} 55. Kc4 {[%clk 0:00:04]}  Kg4 {[%clk 0:00:06]} 56. b5 {[%clk 0:00:04]}  h4 {[%clk 0:00:07]} 57. b6 {[%clk 0:00:05]}  h3 {[%clk 0:00:07]} 58. b7 {[%clk 0:00:05]}  h2 {[%clk 0:00:08]} 59. b8=Q {[%clk 0:00:06]}  h1=Q {[%clk 0:00:09]} 60. Qc8+ {[%clk 0:00:06]}  Kg5 {[%clk 0:00:06]} 61. Qd8+ {[%clk 0:00:07]}  Kg4 {[%clk 0:00:06]} 62. Qd4+ {[%clk 0:00:07]}  Kg5 {[%clk 0:00:06]} 63. Qe5+ {[%clk 0:00:07]}  Kg4 {[%clk 0:00:06]} 64. Qe6+ {[%clk 0:00:08]}  Kg5 {[%clk 0:00:06]} 65. a4 {[%clk 0:00:08]}  Qc1+ {[%clk 0:00:06]} 66. Kb5 {[%clk 0:00:08]}  Qb2+ {[%clk 0:00:06]} 67. Ka6 {[%clk 0:00:06]}  Kh5 {[%clk 0:00:04]} 68. Qh3+ {[%clk 0:00:04]}  Kg5 {[%clk 0:00:03]} 69. Qe3+ {[%clk 0:00:04]}  Kh4 {[%clk 0:00:02]} 70. Qf4+ {[%clk 0:00:03]}  Kh5 {[%clk 0:00:02]} 71. Qf3+ {[%clk 0:00:04]}  Kh4 {[%clk 0:00:02]} 72. Qe4+ {[%clk 0:00:05]}  Kh5 {[%clk 0:00:02]} 73. a5 {[%clk 0:00:05]}  g5 {[%clk 0:00:02]} 74. Qh7+ {[%clk 0:00:05]}  Kg4 {[%clk 0:00:03]} 75. Qd7+ {[%clk 0:00:05]}  Kh4 {[%clk 0:00:02]} 76. Qh7+ {[%clk 0:00:05]}  Kg4 {[%clk 0:00:02]} 77. Qe4+ {[%clk 0:00:05]}  Kh5 {[%clk 0:00:02]} 78. Ka7 {[%clk 0:00:06]}  g4 {[%clk 0:00:03]} 79. a6 {[%clk 0:00:06]}  Kh4 {[%clk 0:00:03]} 80. Ka8 {[%clk 0:00:05]}  Kh3 {[%clk 0:00:02]} 81. Qh7+ {[%clk 0:00:04]}  Kg2 {[%clk 0:00:02]} 82. Qe4+ {[%clk 0:00:05]}  Kh3 {[%clk 0:00:02]} 83. Qf5 {[%clk 0:00:05]}  Kh4 {[%clk 0:00:02]} 84. Qf4 {[%clk 0:00:04]}  Kh3 {[%clk 0:00:02]} 85. Qh6+ {[%clk 0:00:04]}  Kg2 {[%clk 0:00:02]} 86. Qc6+ {[%clk 0:00:04]}  Kh3 {[%clk 0:00:02]} 87. Qd7 {[%clk 0:00:05]}  Kh4 {[%clk 0:00:02]} 88. Qe7+ {[%clk 0:00:04]}  Kh3 {[%clk 0:00:02]} 89. Qb7 {[%clk 0:00:04]}  Qc3 {[%clk 0:00:02]} 90. Qh1+ {[%clk 0:00:04]}  Kg3 {[%clk 0:00:02]} 91. Qg1+ {[%clk 0:00:04]}  Kh3 {[%clk 0:00:01]} 92. Qf1+ {[%clk 0:00:04]}  Kg3 {[%clk 0:00:01]} 93. Qf5 {[%clk 0:00:04]}  Qf3+ {[%clk 0:00:02]} 94. Qxf3+ {[%clk 0:00:04]}  gxf3 {[%clk 0:00:02]} 95. Kb7 {[%clk 0:00:04]}  f2 {[%clk 0:00:03]} 96. a7 {[%clk 0:00:05]}  f1=Q {[%clk 0:00:04]} 97. a8=Q {[%clk 0:00:06]}  Qf3+ {[%clk 0:00:05]} 98. Kb8 {[%clk 0:00:06]}  Qxa8+ {[%clk 0:00:06]} 99. Kxa8 {[%clk 0:00:05]} 1/2-1/2


[Site "https://www.chess.com"]

[Event "Titled Tuesday Blitz April 25 Early 2023"]
[White "Odegov, Artem"]
[Black "Szpar, Milosz"]
[WhiteFideId "34183644"]
[BlackFideId "1184989"]
[WhiteElo "2300"]
[BlackElo "2436"]
[Result "0-1"]
[Round "11"]
[TimeControl "180+2"]
[Date "2023.04.25"]
[WhiteClock "0:00:01"]
[BlackClock "0:00:22"]

1. d4 {[%clk 0:03:00]}  Nf6 {[%clk 0:02:59]} 2. c4 {[%clk 0:03:00]}  c5 {[%clk 0:02:59]} 3. d5 {[%clk 0:03:00]}  e6 {[%clk 0:03:00]} 4. Nc3 {[%clk 0:03:00]}  exd5 {[%clk 0:03:00]} 5. cxd5 {[%clk 0:03:01]}  d6 {[%clk 0:03:00]} 6. e4 {[%clk 0:03:01]}  g6 {[%clk 0:03:01]} 7. f4 {[%clk 0:03:02]}  Bg7 {[%clk 0:03:01]} 8. Bb5+ {[%clk 0:03:03]}  Nfd7 {[%clk 0:03:01]} 9. a4 {[%clk 0:03:02]}  O-O {[%clk 0:03:01]} 10. Nf3 {[%clk 0:03:03]}  Na6 {[%clk 0:03:02]} 11. O-O {[%clk 0:03:02]}  Nb4 {[%clk 0:03:03]} 12. Re1 {[%clk 0:03:03]}  a6 {[%clk 0:03:02]} 13. Bf1 {[%clk 0:03:02]}  Re8 {[%clk 0:03:02]} 14. Be3 {[%clk 0:03:02]}  Nf6 {[%clk 0:02:57]} 15. Bf2 {[%clk 0:03:00]}  Bg4 {[%clk 0:02:52]} 16. Rc1 {[%clk 0:02:53]}  Nh5 {[%clk 0:02:47]} 17. h3 {[%clk 0:02:49]}  Bxf3 {[%clk 0:02:41]} 18. Qxf3 {[%clk 0:02:50]}  Bd4 {[%clk 0:02:31]} 19. g4 {[%clk 0:02:41]}  Nf6 {[%clk 0:02:24]} 20. Bg2 {[%clk 0:02:15]}  Bxf2+ {[%clk 0:02:19]} 21. Kxf2 {[%clk 0:02:16]}  c4 {[%clk 0:02:19]} 22. Bf1 {[%clk 0:02:11]}  b5 {[%clk 0:02:17]} 23. Kg3 {[%clk 0:01:58]}  Rb8 {[%clk 0:02:08]} 24. Rcd1 {[%clk 0:01:56]}  Nd7 {[%clk 0:02:05]} 25. axb5 {[%clk 0:01:33]}  axb5 {[%clk 0:02:06]} 26. h4 {[%clk 0:01:34]}  Nc5 {[%clk 0:01:59]} 27. h5 {[%clk 0:01:33]}  Nbd3 {[%clk 0:01:57]} 28. Bxd3 {[%clk 0:01:30]}  Nxd3 {[%clk 0:01:57]} 29. Re2 {[%clk 0:01:30]}  b4 {[%clk 0:01:46]} 30. Nb1 {[%clk 0:01:28]}  g5 {[%clk 0:01:43]} 31. fxg5 {[%clk 0:00:51]}  Qxg5 {[%clk 0:01:44]} 32. Nd2 {[%clk 0:00:50]}  Qe5+ {[%clk 0:01:36]} 33. Kh4 {[%clk 0:00:46]}  Nxb2 {[%clk 0:01:22]} 34. Rf1 {[%clk 0:00:46]}  Rb7 {[%clk 0:01:20]} 35. Qe3 {[%clk 0:00:21]}  f6 {[%clk 0:01:04]} 36. Rf5 {[%clk 0:00:19]}  Qc3 {[%clk 0:01:00]} 37. Qf4 {[%clk 0:00:14]}  Nd3 {[%clk 0:00:39]} 38. Qh6 {[%clk 0:00:10]}  Rg7 {[%clk 0:00:33]} 39. Rxf6 {[%clk 0:00:05]}  Ne5 {[%clk 0:00:31]} 40. g5 {[%clk 0:00:01]}  Nf7 {[%clk 0:00:22]} 0-1


[Site "https://www.chess.com"]

[Event "Titled Tuesday Blitz April 25 Early 2023"]
[White "MaryanKyrychenko"]
[Black "Cherniaiev, Tykhon"]
[BlackFideId "14182360"]
[WhiteElo "2583"]
[BlackElo "2450"]
[Result "0-1"]
[Round "11"]
[TimeControl "180+2"]
[Date "2023.04.25"]
[WhiteClock "0:00:08"]
[BlackClock "0:00:31"]

1. e4 {[%clk 0:02:59]}  e5 {[%clk 0:02:58]} 2. Nf3 {[%clk 0:02:59]}  Nc6 {[%clk 0:02:58]} 3. d4 {[%clk 0:02:59]}  exd4 {[%clk 0:02:58]} 4. Nxd4 {[%clk 0:03:00]}  Nf6 {[%clk 0:02:58]} 5. Nxc6 {[%clk 0:03:00]}  bxc6 {[%clk 0:02:57]} 6. e5 {[%clk 0:03:01]}  Nd5 {[%clk 0:02:58]} 7. c4 {[%clk 0:02:59]}  Nb6 {[%clk 0:02:58]} 8. b3 {[%clk 0:02:58]}  Bb4+ {[%clk 0:02:54]} 9. Bd2 {[%clk 0:02:44]}  Bxd2+ {[%clk 0:02:52]} 10. Nxd2 {[%clk 0:02:43]}  Qe7 {[%clk 0:02:52]} 11. Qe2 {[%clk 0:02:37]}  O-O {[%clk 0:02:49]} 12. Qe4 {[%clk 0:02:22]}  d5 {[%clk 0:02:33]} 13. Qe3 {[%clk 0:01:43]}  f6 {[%clk 0:02:21]} 14. Bd3 {[%clk 0:01:23]}  Qxe5 {[%clk 0:02:13]} 15. O-O {[%clk 0:01:16]}  Qxe3 {[%clk 0:02:06]} 16. fxe3 {[%clk 0:01:16]}  Be6 {[%clk 0:02:06]} 17. c5 {[%clk 0:01:14]}  Nd7 {[%clk 0:02:05]} 18. b4 {[%clk 0:01:14]}  a5 {[%clk 0:02:01]} 19. a3 {[%clk 0:01:12]}  Rfb8 {[%clk 0:02:00]} 20. Rab1 {[%clk 0:00:42]}  axb4 {[%clk 0:01:58]} 21. axb4 {[%clk 0:00:43]}  Ra4 {[%clk 0:01:57]} 22. Rf4 {[%clk 0:00:43]}  Ne5 {[%clk 0:01:45]} 23. Bf1 {[%clk 0:00:31]}  Kf7 {[%clk 0:01:33]} 24. h4 {[%clk 0:00:19]}  Ke7 {[%clk 0:01:32]} 25. h5 {[%clk 0:00:16]}  g5 {[%clk 0:01:15]} 26. hxg6 {[%clk 0:00:12]}  hxg6 {[%clk 0:01:16]} 27. Rd4 {[%clk 0:00:10]}  Bf5 {[%clk 0:00:45]} 28. Rb2 {[%clk 0:00:09]}  Ra3 {[%clk 0:00:41]} 29. e4 {[%clk 0:00:09]}  dxe4 {[%clk 0:00:41]} 30. Nxe4 {[%clk 0:00:09]}  Re3 {[%clk 0:00:36]} 31. Nf2 {[%clk 0:00:08]}  Rg3 {[%clk 0:00:31]} 32. Rh4 {[%clk 0:00:08]}  Nf3+ {[%clk 0:00:31]} 0-1


[Site "https://www.chess.com"]

[Event "Titled Tuesday Blitz April 25 Early 2023"]
[White "Mamedov, Edgar"]
[Black "Kukhmazov, Arsen"]
[WhiteFideId "13739980"]
[BlackFideId "24108260"]
[WhiteElo "2330"]
[BlackElo "2396"]
[Result "1/2-1/2"]
[Round "11"]
[TimeControl "180+2"]
[Date "2023.04.25"]
[WhiteClock "0:00:04"]
[BlackClock "0:00:09"]

1. Nf3 {[%clk 0:02:55]}  d5 {[%clk 0:02:59]} 2. c4 {[%clk 0:02:54]}  c6 {[%clk 0:02:59]} 3. cxd5 {[%clk 0:02:54]}  cxd5 {[%clk 0:03:00]} 4. d4 {[%clk 0:02:54]}  Nc6 {[%clk 0:02:59]} 5. Bf4 {[%clk 0:02:54]}  Qb6 {[%clk 0:02:56]} 6. Nc3 {[%clk 0:02:51]}  Nf6 {[%clk 0:02:37]} 7. e3 {[%clk 0:02:41]}  Qxb2 {[%clk 0:02:29]} 8. Nb5 {[%clk 0:02:40]}  Ne4 {[%clk 0:02:27]} 9. Be2 {[%clk 0:02:13]}  Nc3 {[%clk 0:02:28]} 10. Nxc3 {[%clk 0:02:10]}  Qxc3+ {[%clk 0:02:28]} 11. Nd2 {[%clk 0:02:08]}  e6 {[%clk 0:02:26]} 12. O-O {[%clk 0:02:07]}  Be7 {[%clk 0:02:26]} 13. Nb3 {[%clk 0:02:02]}  Qb4 {[%clk 0:02:24]} 14. Rb1 {[%clk 0:01:58]}  Qa3 {[%clk 0:02:24]} 15. Qc1 {[%clk 0:01:53]}  O-O {[%clk 0:02:22]} 16. Qxa3 {[%clk 0:01:49]}  Bxa3 {[%clk 0:02:23]} 17. Bb5 {[%clk 0:01:47]}  Bd7 {[%clk 0:02:21]} 18. Bxc6 {[%clk 0:01:44]}  Bxc6 {[%clk 0:02:19]} 19. Na5 {[%clk 0:01:44]}  Rfc8 {[%clk 0:02:10]} 20. Nxb7 {[%clk 0:01:41]}  Bxb7 {[%clk 0:02:04]} 21. Rxb7 {[%clk 0:01:40]}  Rc2 {[%clk 0:02:04]} 22. Rfb1 {[%clk 0:01:34]}  h5 {[%clk 0:02:05]} 23. h4 {[%clk 0:01:27]}  Rxa2 {[%clk 0:02:03]} 24. Rd7 {[%clk 0:01:22]}  Rb2 {[%clk 0:02:03]} 25. Ra1 {[%clk 0:01:21]}  Rb3 {[%clk 0:02:04]} 26. Bd6 {[%clk 0:01:15]}  Bxd6 {[%clk 0:02:03]} 27. Rxd6 {[%clk 0:01:15]}  a5 {[%clk 0:02:04]} 28. Ra4 {[%clk 0:01:14]}  Rb2 {[%clk 0:01:53]} 29. Rc6 {[%clk 0:01:13]}  Rb4 {[%clk 0:01:14]} 30. Rxb4 {[%clk 0:01:04]}  axb4 {[%clk 0:01:15]} 31. Rb6 {[%clk 0:01:03]}  Ra1+ {[%clk 0:01:15]} 32. Kh2 {[%clk 0:01:03]}  Rb1 {[%clk 0:01:16]} 33. Rb7 {[%clk 0:01:01]}  b3 {[%clk 0:01:16]} 34. Kg3 {[%clk 0:01:01]}  g6 {[%clk 0:01:14]} 35. Kf3 {[%clk 0:01:00]}  Kg7 {[%clk 0:01:15]} 36. g3 {[%clk 0:00:59]}  Kf6 {[%clk 0:01:15]} 37. Kg2 {[%clk 0:00:56]}  b2 {[%clk 0:01:11]} 38. Kf3 {[%clk 0:00:55]}  e5 {[%clk 0:01:06]} 39. Rb6+ {[%clk 0:00:45]}  Kf5 {[%clk 0:01:06]} 40. dxe5 {[%clk 0:00:40]}  Kxe5 {[%clk 0:01:07]} 41. Ke2 {[%clk 0:00:34]}  f6 {[%clk 0:01:02]} 42. Kf3 {[%clk 0:00:21]}  g5 {[%clk 0:00:57]} 43. Kg2 {[%clk 0:00:16]}  Kf5 {[%clk 0:00:54]} 44. hxg5 {[%clk 0:00:14]}  fxg5 {[%clk 0:00:53]} 45. Rb4 {[%clk 0:00:12]}  g4 {[%clk 0:00:26]} 46. Rf4+ {[%clk 0:00:10]}  Ke5 {[%clk 0:00:26]} 47. Rb4 {[%clk 0:00:10]}  Kd6 {[%clk 0:00:27]} 48. Rb8 {[%clk 0:00:09]}  Kc5 {[%clk 0:00:27]} 49. Kh2 {[%clk 0:00:06]}  Kc4 {[%clk 0:00:28]} 50. Kg2 {[%clk 0:00:06]}  Kc3 {[%clk 0:00:28]} 51. Rc8+ {[%clk 0:00:06]}  Kd3 {[%clk 0:00:29]} 52. Rb8 {[%clk 0:00:06]}  Ke2 {[%clk 0:00:30]} 53. Rb7 {[%clk 0:00:06]}  Ke1 {[%clk 0:00:28]} 54. Rb8 {[%clk 0:00:05]}  Kd2 {[%clk 0:00:23]} 55. Rb7 {[%clk 0:00:05]}  Kc2 {[%clk 0:00:24]} 56. Rc7+ {[%clk 0:00:05]}  Kd3 {[%clk 0:00:25]} 57. Rb7 {[%clk 0:00:05]}  d4 {[%clk 0:00:12]} 58. exd4 {[%clk 0:00:04]}  Kxd4 {[%clk 0:00:13]} 59. Rb8 {[%clk 0:00:04]}  Kc4 {[%clk 0:00:13]} 60. Rb7 {[%clk 0:00:04]}  Kd3 {[%clk 0:00:13]} 61. Rb8 {[%clk 0:00:04]}  Kc2 {[%clk 0:00:14]} 62. Rc8+ {[%clk 0:00:04]}  Kd1 {[%clk 0:00:15]} 63. Rb8 {[%clk 0:00:04]}  Rc1 {[%clk 0:00:14]} 64. Rxb2 {[%clk 0:00:04]}  Rc2 {[%clk 0:00:15]} 65. Rb5 {[%clk 0:00:04]}  Ke1 {[%clk 0:00:14]} 66. Rb1+ {[%clk 0:00:03]}  Ke2 {[%clk 0:00:13]} 67. Rh1 {[%clk 0:00:03]}  Rc5 {[%clk 0:00:07]} 68. Ra1 {[%clk 0:00:03]}  Rf5 {[%clk 0:00:07]} 69. Ra2+ {[%clk 0:00:03]}  Ke1 {[%clk 0:00:08]} 70. Ra1+ {[%clk 0:00:03]}  Ke2 {[%clk 0:00:08]} 71. Ra2+ {[%clk 0:00:04]}  Ke1 {[%clk 0:00:09]} 72. Ra1+ {[%clk 0:00:04]}  Ke2 {[%clk 0:00:09]} 1/2-1/2


[Site "https://www.chess.com"]

[Event "Titled Tuesday Blitz April 25 Early 2023"]
[White "Kosakowski, Jakub"]
[Black "Martinez Ramirez, Lennis"]
[WhiteFideId "1185080"]
[BlackFideId "3509079"]
[WhiteElo "2488"]
[BlackElo "2410"]
[Result "1-0"]
[Round "11"]
[TimeControl "180+2"]
[Date "2023.04.25"]
[WhiteClock "0:00:05"]
[BlackClock "0:00:01"]

1. Nf3 {[%clk 0:02:49]}  d5 {[%clk 0:02:59]} 2. e3 {[%clk 0:02:46]}  Nf6 {[%clk 0:02:56]} 3. c4 {[%clk 0:02:46]}  g6 {[%clk 0:02:55]} 4. Nc3 {[%clk 0:02:44]}  Bg7 {[%clk 0:02:51]} 5. Qb3 {[%clk 0:02:44]}  dxc4 {[%clk 0:02:43]} 6. Bxc4 {[%clk 0:02:44]}  O-O {[%clk 0:02:44]} 7. d4 {[%clk 0:02:44]}  Nc6 {[%clk 0:02:23]} 8. Qa3 {[%clk 0:02:14]}  Bg4 {[%clk 0:02:21]} 9. Be2 {[%clk 0:02:13]}  a5 {[%clk 0:02:19]} 10. Bd2 {[%clk 0:02:11]}  Nb4 {[%clk 0:02:13]} 11. Rc1 {[%clk 0:02:09]}  Bxf3 {[%clk 0:02:13]} 12. gxf3 {[%clk 0:02:10]}  e5 {[%clk 0:02:06]} 13. dxe5 {[%clk 0:02:09]}  Nd7 {[%clk 0:02:05]} 14. Ne4 {[%clk 0:01:59]}  Nxe5 {[%clk 0:02:03]} 15. O-O {[%clk 0:01:53]}  f5 {[%clk 0:01:50]} 16. Bxb4 {[%clk 0:01:28]}  axb4 {[%clk 0:01:32]} 17. Qb3+ {[%clk 0:01:27]}  Kh8 {[%clk 0:01:33]} 18. Nc5 {[%clk 0:01:26]}  Qg5+ {[%clk 0:00:57]} 19. Kh1 {[%clk 0:01:25]}  Qh5 {[%clk 0:00:57]} 20. Rg1 {[%clk 0:01:17]}  Nxf3 {[%clk 0:00:55]} 21. Rg2 {[%clk 0:01:17]}  Be5 {[%clk 0:00:37]} 22. Ne6 {[%clk 0:01:11]}  Rfe8 {[%clk 0:00:21]} 23. Ng5 {[%clk 0:01:07]}  Qxg5 {[%clk 0:00:11]} 24. Rxg5 {[%clk 0:01:06]}  Nxg5 {[%clk 0:00:11]} 25. Qxb4 {[%clk 0:01:02]}  Ne4 {[%clk 0:00:09]} 26. Kg2 {[%clk 0:01:02]}  Rxa2 {[%clk 0:00:08]} 27. Rc2 {[%clk 0:00:49]}  b6 {[%clk 0:00:08]} 28. Qb5 {[%clk 0:00:49]}  Nd6 {[%clk 0:00:08]} 29. Qd5 {[%clk 0:00:49]}  Rxb2 {[%clk 0:00:05]} 30. Rxb2 {[%clk 0:00:38]}  Bxb2 {[%clk 0:00:06]} 31. Bb5 {[%clk 0:00:38]}  Re7 {[%clk 0:00:06]} 32. Bc4 {[%clk 0:00:37]}  Kg7 {[%clk 0:00:05]} 33. Qg8+ {[%clk 0:00:36]}  Kh6 {[%clk 0:00:05]} 34. Qf8+ {[%clk 0:00:37]}  Rg7 {[%clk 0:00:05]} 35. Bd5 {[%clk 0:00:37]}  b5 {[%clk 0:00:05]} 36. Qd8 {[%clk 0:00:36]}  g5 {[%clk 0:00:04]} 37. h3 {[%clk 0:00:32]}  b4 {[%clk 0:00:04]} 38. Qb8 {[%clk 0:00:20]}  Bc3 {[%clk 0:00:05]} 39. Kf1 {[%clk 0:00:18]}  g4 {[%clk 0:00:06]} 40. h4 {[%clk 0:00:18]}  g3 {[%clk 0:00:05]} 41. fxg3 {[%clk 0:00:19]}  Rxg3 {[%clk 0:00:06]} 42. Qxc7 {[%clk 0:00:19]}  Rg6 {[%clk 0:00:06]} 43. Ke2 {[%clk 0:00:16]}  Rf6 {[%clk 0:00:04]} 44. h5 {[%clk 0:00:16]}  Kxh5 {[%clk 0:00:04]} 45. Qxh7+ {[%clk 0:00:16]}  Kg5 {[%clk 0:00:05]} 46. Kf3 {[%clk 0:00:16]}  Ne4 {[%clk 0:00:03]} 47. Qh2 {[%clk 0:00:11]}  Kg6 {[%clk 0:00:03]} 48. Qh8 {[%clk 0:00:07]}  Kg5 {[%clk 0:00:02]} 49. Ke2 {[%clk 0:00:07]}  Rh6 {[%clk 0:00:02]} 50. Qd8+ {[%clk 0:00:07]}  Kg4 {[%clk 0:00:01]} 51. Qg8+ {[%clk 0:00:05]}  Ng5 {[%clk 0:00:02]} 52. Bf3+ {[%clk 0:00:05]}  Kh4 {[%clk 0:00:01]} 53. Qb8 {[%clk 0:00:06]}  Rf6 {[%clk 0:00:01]} 54. Qf4+ {[%clk 0:00:05]} 1-0


[Site "https://www.chess.com"]

[Event "Titled Tuesday Blitz April 25 Early 2023"]
[White "Asavasaetakul, Chawit"]
[Black "Liu, Xiangyi"]
[WhiteFideId "6204856"]
[BlackFideId "8605718"]
[WhiteElo "1919"]
[BlackElo "2323"]
[Result "1-0"]
[Round "11"]
[TimeControl "180+2"]
[Date "2023.04.25"]
[WhiteClock "0:00:55"]
[BlackClock "0:00:07"]

1. e4 {[%clk 0:03:00]}  e6 {[%clk 0:02:59]} 2. d4 {[%clk 0:02:59]}  d5 {[%clk 0:02:59]} 3. Nd2 {[%clk 0:02:59]}  Be7 {[%clk 0:02:47]} 4. Ngf3 {[%clk 0:02:56]}  Nf6 {[%clk 0:02:44]} 5. Bd3 {[%clk 0:02:55]}  c5 {[%clk 0:02:40]} 6. dxc5 {[%clk 0:02:55]}  Bxc5 {[%clk 0:02:25]} 7. Qe2 {[%clk 0:02:53]}  Nc6 {[%clk 0:02:23]} 8. c3 {[%clk 0:02:52]}  O-O {[%clk 0:01:42]} 9. O-O {[%clk 0:02:51]}  e5 {[%clk 0:01:23]} 10. exd5 {[%clk 0:02:50]}  Qxd5 {[%clk 0:01:22]} 11. h3 {[%clk 0:02:42]}  Re8 {[%clk 0:01:16]} 12. Bc4 {[%clk 0:02:33]}  Qd8 {[%clk 0:01:08]} 13. Ng5 {[%clk 0:02:32]}  Rf8 {[%clk 0:01:05]} 14. Nde4 {[%clk 0:02:32]}  Be7 {[%clk 0:00:55]} 15. Rd1 {[%clk 0:02:22]}  Qc7 {[%clk 0:00:54]} 16. Nxf7 {[%clk 0:01:47]}  Rxf7 {[%clk 0:00:52]} 17. Ng5 {[%clk 0:01:47]}  Nd8 {[%clk 0:00:35]} 18. Rxd8+ {[%clk 0:01:46]}  Bxd8 {[%clk 0:00:35]} 19. Bxf7+ {[%clk 0:01:41]}  Kf8 {[%clk 0:00:32]} 20. Bb3 {[%clk 0:01:40]}  Qe7 {[%clk 0:00:24]} 21. Be3 {[%clk 0:01:31]}  h6 {[%clk 0:00:18]} 22. Nf3 {[%clk 0:01:21]}  Bb6 {[%clk 0:00:17]} 23. Bxb6 {[%clk 0:01:20]}  axb6 {[%clk 0:00:18]} 24. Qxe5 {[%clk 0:01:20]}  Qxe5 {[%clk 0:00:18]} 25. Nxe5 {[%clk 0:01:19]}  Ne4 {[%clk 0:00:19]} 26. Re1 {[%clk 0:01:18]}  Bf5 {[%clk 0:00:18]} 27. f3 {[%clk 0:01:18]}  Nc5 {[%clk 0:00:18]} 28. g4 {[%clk 0:01:14]}  Bh7 {[%clk 0:00:18]} 29. Bc4 {[%clk 0:01:09]}  Rd8 {[%clk 0:00:12]} 30. Kf2 {[%clk 0:01:02]}  Na4 {[%clk 0:00:11]} 31. Re2 {[%clk 0:00:58]}  g5 {[%clk 0:00:11]} 32. Bb5 {[%clk 0:00:56]}  Nc5 {[%clk 0:00:10]} 33. b4 {[%clk 0:00:55]}  Ne6 {[%clk 0:00:08]} 34. Nd7+ {[%clk 0:00:54]}  Kf7 {[%clk 0:00:07]} 35. Bc4 {[%clk 0:00:55]} 1-0


[Site "https://www.chess.com"]